fUSD/lending_fUSD_20250828
["ID","MTS","AMOUNT","RATE_DAILY","PERIOD"]
[381878205,1756384265680,-204.04,0.00032,30]
[381878207,1756384265690,-2860.31,0.00032,7]
[381878209,1756384265699,-36371.98,0.00032,7]
[381878211,1756384265709,-3137.65,0.00032,2]
[381878213,1756384265718,-4000.0,0.00032,4]
[381878214,1756384265728,-1100.0,0.00032008,7]
[381878215,1756384265738,-1100.0,0.00032012,7]
[381878216,1756384265750,-1100.0,0.00032019,7]
[381878217,1756384265759,-500.0,0.00032022,7]
[381878218,1756384265769,-1412.93,0.00032028,15]
[381878219,1756384265778,-150.0,0.00032038,120]
[381878220,1756384265788,-1200.0,0.0003207,7]
[381878221,1756384265798,-800.0,0.00032071,7]
[381878222,1756384265807,-1300.0,0.00032072,7]
[381878223,1756384265818,-1000.0,0.00032076,7]
[381878224,1756384265827,-150.0,0.00032107,120]
[381878225,1756384265837,-516.96360393,0.00032126,7]
[381878226,1756384265846,-1412.93,0.00032128,15]
[381878227,1756384265856,-168.0,0.00032136,2]
[381878228,1756384265866,-500.0,0.00032143,7]
[381878229,1756384265875,-500.0,0.00032156,2]
[381878230,1756384265884,-500.0,0.00032156,2]
[381878231,1756384265894,-500.0,0.00032156,2]
[381878232,1756384265903,-500.0,0.00032156,2]
[381878233,1756384265912,-500.0,0.00032156,2]
[381878234,1756384265921,-500.0,0.00032156,2]
[381878235,1756384265930,-500.0,0.00032156,2]
[381878236,1756384265939,-500.0,0.00032156,2]
[381878237,1756384265948,-500.0,0.00032156,2]
[381878238,1756384265957,-500.0,0.00032156,2]
[381878239,1756384265967,-500.0,0.00032156,2]
[381878240,1756384265976,-500.0,0.00032156,2]
[381878241,1756384265985,-500.0,0.00032156,2]
[381878242,1756384265995,-574.0,0.00032156,2]
[381878243,1756384266006,-529.0,0.00032156,2]
[381878244,1756384266016,-500.0,0.00032156,2]
[381878245,1756384266025,-500.0,0.00032156,2]
[381878246,1756384266034,-500.0,0.00032156,2]
[381878247,1756384266043,-500.0,0.00032156,2]
[381878248,1756384266052,-500.0,0.00032156,2]
[381878249,1756384266062,-500.0,0.00032156,2]
[381878250,1756384266071,-500.0,0.00032156,2]
[381878252,1756384266080,-500.0,0.00032156,2]
[381878254,1756384266090,-500.0,0.00032156,2]
[381878256,1756384266099,-500.0,0.00032156,2]
[381878258,1756384266109,-500.0,0.00032156,2]
[381878260,1756384266119,-500.0,0.00032156,2]
[381878262,1756384266128,-500.0,0.00032156,2]
[381878264,1756384266137,-500.0,0.00032156,2]
[381878266,1756384266146,-500.0,0.00032156,2]
[381878268,1756384266156,-500.0,0.00032156,2]
[381878270,1756384266165,-500.0,0.00032156,2]
[381878271,1756384266175,-500.0,0.00032156,2]
[381878273,1756384266184,-514.0,0.00032156,2]
[381878275,1756384266195,-500.0,0.00032156,2]
[381878277,1756384266209,-500.0,0.00032156,2]
[381878279,1756384266218,-529.0,0.00032156,2]
[381878280,1756384266227,-1200.0,0.00032177,7]
[381878281,1756384266237,-1000.0,0.0003218,7]
[381878282,1756384266247,-500.0,0.00032221,7]
[381878283,1756384266258,-681.75271276,0.00032226,7]
[381878284,1756384266267,-1412.93,0.00032228,15]
[381878285,1756384266277,-1200.0,0.00032228,7]
[381878286,1756384266288,-1200.0,0.00032263,7]
[381878287,1756384266297,-150.0,0.00032267,120]
[381878288,1756384266306,-150.0,0.00032273,120]
[381878289,1756384266315,-874.0284084,0.000323,2]
[381878290,1756384266325,-500.0,0.00032311,7]
[381878291,1756384266334,-500.0,0.00032315,7]
[381878292,1756384266343,-175.81207623,0.00032324,30]
[381878293,1756384266353,-1200.0,0.00032325,7]
[381878294,1756384266362,-1412.93,0.00032328,15]
[381878295,1756384266372,-726.62,0.00032328,13]
[381878296,1756384266381,-500.0,0.00032336,7]
[381878297,1756384266391,-500.0,0.00032336,7]
[381878298,1756384266400,-168.0,0.00032344,2]
[381878299,1756384266412,-800.0,0.00032349,7]
[381878300,1756384266422,-1300.0,0.00032352,7]
[381878301,1756384266432,-1100.0,0.00032353,7]
[381878302,1756384266442,-500.0,0.00032353,7]
[381878303,1756384266451,-1100.0,0.00032365,7]
[381878304,1756384266461,-1100.0,0.00032373,7]
[381878305,1756384266471,-500.0,0.00032378,7]
[381878306,1756384266481,-427.85149818,0.00032387,7]
[381878308,1756384266491,-500.0,0.00032404,7]
[381878309,1756384266500,-500.0,0.00032422,7]
[381878310,1756384266510,-5250.49999236,0.00032423,4]
[381878312,1756384266521,-150.0,0.00032424,120]
[381878314,1756384266531,-1412.93,0.00032428,15]
[381878316,1756384266541,-1200.0,0.0003243,7]
[381878318,1756384266551,-500.0,0.00032442,7]
[381878320,1756384266561,-1000.0,0.0003245,7]
[381878322,1756384266571,-1000.0,0.00032462,7]
[381878324,1756384266581,-1000.0,0.00032471,7]
[381878326,1756384266591,-150.0,0.00032484,30]
[381878328,1756384266601,-36371.98,0.000325,7]
[381878330,1756384266611,-1100.0,0.00032511,7]
[381878332,1756384266622,-1100.0,0.00032512,7]
[381878334,1756384266633,-572.51930477,0.00032522,7]
[381878336,1756384266642,-200.78,0.00032528,15]
[381878337,1756384266652,-1412.93,0.00032528,15]
[381878339,1756384266662,-269.33304384,0.00032537,2]
[381878342,1756384266673,-500.0,0.00032547,7]
[381878343,1756384266684,-1000.0,0.00032554,7]
[381878346,1756384266695,-5625.37475522,0.00032569,18]
[381878348,1756384266705,-151.39,0.00032577,15]
[381878349,1756384266715,-1000.0,0.00032585,7]
[381878352,1756384266725,-500.0,0.00032599,7]
[381878353,1756384266734,-503.0594545,0.00032606,7]
[381878356,1756384266744,-998.13785374,0.00032608,7]
[381878358,1756384266758,-1100.0,0.00032618,7]
[381878360,1756384266768,-1200.0,0.00032619,7]
[381878361,1756384266778,-200.78,0.00032628,15]
[381878363,1756384266788,-1412.93,0.00032628,15]
[381878365,1756384266798,-500.0,0.00032635,7]
[381878367,1756384266808,-500.0,0.00032642,7]
[381878369,1756384266819,-500.0,0.00032647,7]
[381878371,1756384266829,-500.0,0.00032653,7]
[381878373,1756384266839,-175.81207623,0.00032657,30]
[381878376,1756384266849,-159.80905372,0.00032657,30]
[381878377,1756384266858,-500.0,0.00032661,7]
[381878379,1756384266867,-334.46874198,0.00032675,2]
[381878381,1756384266877,-151.39,0.00032677,15]
[381878383,1756384266887,-216.06651795,0.0003268,7]
[381878385,1756384266897,-1200.0,0.00032684,7]
[381878387,1756384266907,-1300.0,0.00032692,7]
[381878389,1756384266917,-300.0,0.000327,2]
[381878392,1756384266927,-1186.34,0.000327,2]
[381878394,1756384266937,-300.0,0.000327,2]
[381878396,1756384266950,-1079.54,0.000327,2]
[381878397,1756384266960,-150.0,0.000327,2]
[381878400,1756384266970,-373.86,0.000327,2]
[381878402,1756384266979,-173.87,0.000327,2]
[381878403,1756384266989,-1186.34,0.000327,2]
[381878405,1756384267003,-150.0,0.000327,2]
[381878407,1756384267013,-173.87,0.000327,2]
[381878410,1756384267023,-1186.34,0.000327,2]
[381878412,1756384267032,-173.63,0.000327,2]
[381878414,1756384267042,-150.0,0.000327,2]
[381878415,1756384267052,-166.18,0.000327,2]
[381878417,1756384267063,-408.79,0.000327,2]
[381878419,1756384267073,-150.0,0.000327,2]
[381878422,1756384267083,-1182.56,0.000327,2]
[381878424,1756384267094,-166.18,0.000327,2]
[381878426,1756384267104,-150.0,0.00032718,120]
[381878428,1756384267113,-200.78,0.00032728,15]
[381878429,1756384267123,-1412.93,0.00032728,15]
[381878432,1756384267133,-500.0,0.00032742,7]
[381878434,1756384267143,-151.39,0.00032777,15]
[381878436,1756384267156,-992.5322575,0.0003278,7]
[381878438,1756384267166,-1300.0,0.00032789,7]
[381878440,1756384267176,-1100.0,0.0003279,7]
[381878442,1756384267186,-500.0,0.00032792,7]
[381878444,1756384267198,-24000.0,0.000328,120]
[381878446,1756384267209,-200.0,0.000328,11]
[381878448,1756384267220,-500.0,0.000328,7]
[381878450,1756384267229,-200.78,0.00032828,15]
[381878452,1756384267239,-1412.93,0.00032828,15]
[381878453,1756384267254,-1100.0,0.0003283,7]
[381878455,1756384267264,-500.0,0.00032832,7]
[381878457,1756384267273,-1100.0,0.00032835,7]
[381878459,1756384267283,-1200.0,0.00032843,7]
[381878462,1756384267295,-500.0,0.00032876,120]
[381878464,1756384267306,-400.0,0.00032876,2]
[381878466,1756384267318,-400.0,0.00032876,2]
[381878472,1756384267375,-400.0,0.00032876,2]
[381878474,1756384267384,-400.0,0.00032876,2]
[381878476,1756384267396,-400.0,0.00032876,2]
[381878479,1756384267406,-400.0,0.00032876,2]
[381878481,1756384267416,-400.0,0.00032876,2]
[381878482,1756384267427,-400.0,0.00032876,2]
[381878484,1756384267437,-400.0,0.00032876,2]
[381878487,1756384267447,-400.0,0.00032876,2]
[381878488,1756384267456,-400.0,0.00032876,2]
[381878490,1756384267466,-400.0,0.00032876,2]
[381878492,1756384267475,-400.0,0.00032876,2]
[381878494,1756384267485,-400.0,0.00032876,2]
[381878496,1756384267494,-462.01178542,0.00032876,2]
[381878498,1756384267505,-336.72,0.00032877,2]
[381878500,1756384267515,-151.39,0.00032877,60]
[381878502,1756384267525,-500.0,0.00032877,7]
[381878504,1756384267535,-500.0,0.00032877,7]
[381878506,1756384267544,-500.0,0.00032877,7]
[381878508,1756384267555,-500.0,0.00032877,7]
[381878510,1756384267566,-500.0,0.00032877,7]
[381878512,1756384267576,-500.0,0.00032877,7]
[381878514,1756384267585,-500.0,0.00032877,7]
[381878516,1756384267595,-500.0,0.00032877,7]
[381878518,1756384267604,-500.0,0.00032877,7]
[381878520,1756384267614,-500.0,0.00032877,7]
[381878522,1756384267624,-500.0,0.00032877,7]
[381878524,1756384267634,-500.0,0.00032877,7]
[381878525,1756384267644,-500.0,0.00032877,7]
[381878526,1756384267654,-500.0,0.00032877,7]
[381878527,1756384267665,-500.0,0.00032877,7]
[381878528,1756384267675,-500.0,0.00032877,7]
[381878530,1756384267684,-500.0,0.00032877,7]
[381878531,1756384267694,-500.0,0.00032877,7]
[381878532,1756384267704,-500.0,0.00032877,7]
[381878533,1756384267713,-500.0,0.00032877,7]
[381878534,1756384267723,-500.0,0.00032877,7]
[381878535,1756384267733,-500.0,0.00032877,7]
[381878536,1756384267742,-500.0,0.00032877,7]
[381878538,1756384267755,-500.0,0.00032877,7]
[381878539,1756384267764,-500.0,0.00032877,7]
[381878540,1756384267775,-500.0,0.00032877,7]
[381878541,1756384267785,-328.35870736,0.00032877,7]
[381878542,1756384267794,-500.0,0.00032877,7]
[381878543,1756384267804,-500.0,0.00032877,7]
[381878544,1756384267813,-500.0,0.00032877,7]
[381878545,1756384267823,-500.0,0.00032877,7]
[381878546,1756384267833,-258.70652304,0.00032877,7]
[381878547,1756384267843,-500.0,0.00032877,7]
[381878548,1756384267853,-500.0,0.00032881,7]
[381878549,1756384267863,-800.0,0.00032886,7]
[381878550,1756384267873,-1300.0,0.00032894,7]
[381878551,1756384267882,-1100.0,0.00032896,7]
[381878552,1756384267892,-526.37662862,0.000329,30]
[381878553,1756384267902,-200.0,0.000329,12]
[381878554,1756384267911,-1504.213213,0.000329,12]
[381878555,1756384267922,-1200.0,0.00032902,7]
[381878556,1756384267931,-598.98932572,0.00032914,7]
[381878557,1756384267941,-800.0,0.0003292,7]
[381878558,1756384267951,-1100.0,0.00032921,7]
[381878559,1756384267962,-500.0,0.00032923,7]
[381878560,1756384267971,-200.78,0.00032928,60]
[381878561,1756384267981,-1412.93,0.00032928,60]
[381878562,1756384267990,-1100.0,0.00032931,7]
[381878563,1756384268004,-1200.0,0.00032935,7]
[381878564,1756384268014,-500.0,0.00032935,2]
[381878565,1756384268025,-500.0,0.00032935,2]
[381878566,1756384268034,-500.0,0.00032935,2]
[381878567,1756384268044,-500.0,0.00032935,2]
[381878568,1756384268054,-500.0,0.00032935,2]
[381878569,1756384268064,-500.0,0.00032935,2]
[381878570,1756384268073,-500.0,0.00032935,2]
[381878571,1756384268084,-500.0,0.00032935,2]
[381878572,1756384268094,-500.0,0.00032935,2]
[381878573,1756384268104,-500.0,0.00032935,2]
[381878574,1756384268114,-815.0,0.00032935,2]
[381878575,1756384268123,-500.0,0.00032935,2]
[381878576,1756384268133,-500.0,0.00032935,2]
[381878577,1756384268142,-588.0,0.00032935,2]
[381878578,1756384268152,-173.87,0.00032959,2]
[381878579,1756384268162,-461.44,0.00032959,2]
[381878580,1756384268172,-166.12,0.00032959,2]
[381878581,1756384268181,-1000.0,0.00032963,7]
[381878582,1756384268191,-150.0,0.00032969,120]
[381878583,1756384268206,-151.39,0.00032977,60]
[381878584,1756384268216,-1300.0,0.00032979,7]
[381878585,1756384268226,-500.0,0.00032984,7]
[381878586,1756384268235,-175.81207623,0.0003299,30]
[381878587,1756384268246,-1100.0,0.00032995,7]
[381878588,1756384268262,-1100.0,0.00032999,7]
[381878589,1756384268272,-172.0,0.00033,30]
[381878590,1756384268283,-850.84843758,0.00033,120]
[381878591,1756384268294,-445.84854116,0.00033,120]
[381878592,1756384268303,-2352.0074,0.00033,2]
[381878593,1756384268313,-769.0,0.00033,30]
[381878594,1756384268323,-2000.0,0.00033,2]
[381878595,1756384268332,-2000.0,0.00033,2]
[381878596,1756384268342,-2000.0,0.00033,2]
[381878597,1756384268352,-2000.0,0.00033,2]
[381878598,1756384268362,-844.93374113,0.00033,120]
[381878599,1756384268371,-2000.0,0.00033,2]
[381878600,1756384268381,-2100.0,0.00033,3]
[381878601,1756384268391,-2000.0,0.00033,3]
[381878602,1756384268401,-4615.57403489,0.00033,2]
[381878603,1756384268412,-206.69124256,0.00033,120]
[381878604,1756384268423,-24231.49727704,0.00033,2]
[381878605,1756384268433,-164.65142645,0.00033,60]
[381878606,1756384268443,-150.0,0.00033,4]
[381878607,1756384268453,-2000.0,0.00033,2]
[381878608,1756384268463,-2000.0,0.00033,2]
[381878609,1756384268473,-958.531953,0.00033,34]
[381878610,1756384268482,-502.0,0.00033,14]
[381878611,1756384268492,-366.0,0.00033,14]
[381878612,1756384268504,-160.0,0.00033,120]
[381878613,1756384268514,-5762.0,0.00033,30]
[381878614,1756384268524,-726.62,0.00033013,14]
[381878615,1756384268535,-1100.0,0.00033018,7]
[381878616,1756384268545,-200.78,0.00033028,60]
[381878617,1756384268556,-1412.93,0.00033028,60]
[381878618,1756384268568,-1200.0,0.00033029,7]
[381878619,1756384268579,-218.28260086,0.00033032,7]
[381878620,1756384268589,-150.0,0.00033032,30]
[381878621,1756384268599,-500.0,0.00033048,7]
[381878622,1756384268608,-1200.0,0.00033072,7]
[381878623,1756384268619,-151.39,0.00033077,60]
[381878624,1756384268628,-1000.0,0.00033081,7]
[381878625,1756384268638,-1100.0,0.00033089,7]
[381878626,1756384268647,-5111.33,0.000331,7]
[381878627,1756384268657,-219.17655521,0.000331,2]
[381878628,1756384268667,-961.38609621,0.00033105,7]
[381878629,1756384268677,-1200.0,0.00033111,7]
[381878630,1756384268687,-800.0,0.00033122,7]
[381878631,1756384268696,-2025.19951831,0.00033123,7]
[381878632,1756384268705,-150.0,0.00033124,2]
[381878633,1756384268715,-500.0,0.00033127,7]
[381878634,1756384268725,-200.78,0.00033128,60]
[381878635,1756384268735,-1412.93,0.00033128,60]
[381878636,1756384268745,-500.0,0.00033128,7]
[381878637,1756384268758,-500.0,0.00033131,7]
[381878638,1756384268768,-500.0,0.00033146,7]
[381878639,1756384268778,-1784.04427292,0.00033147,7]
[381878640,1756384268788,-502.0,0.00033151,30]
[381878641,1756384268798,-366.0,0.00033151,30]
[381878642,1756384268808,-500.0,0.00033154,7]
[381878643,1756384268818,-500.0,0.00033165,7]
[381878644,1756384268827,-257.08,0.00033165,2]
[381878645,1756384268837,-1200.0,0.00033169,7]
[381878646,1756384268847,-1200.0,0.0003317,7]
[381878647,1756384268857,-691.045,0.00033171,7]
[381878648,1756384268867,-151.39,0.00033177,60]
[381878649,1756384268877,-1702.10075811,0.00033201,7]
[381878650,1756384268888,-150.0,0.00033203,120]
[381878651,1756384268898,-918.28779461,0.00033204,7]
[381878652,1756384268908,-398.86540225,0.00033216,2]
[381878653,1756384268918,-251.11897888,0.00033221,2]
[381878654,1756384268928,-481.39951999,0.00033223,2]
[381878655,1756384268937,-200.78,0.00033228,60]
[381878656,1756384268946,-1412.93,0.00033228,60]
[381878657,1756384268956,-300.0,0.0003327,2]
[381878658,1756384268965,-400.0,0.0003327,2]
[381878659,1756384268976,-151.4481514,0.00033277,60]
[381878660,1756384268986,-1400.0,0.00033285,7]
[381878661,1756384268995,-536.13248766,0.00033289,7]
[381878662,1756384269009,-866.63500132,0.0003329,7]
[381878663,1756384269019,-212.2,0.000333,10]
[381878664,1756384269030,-212.2,0.000333,10]
[381878665,1756384269040,-500.0,0.000333,15]
[381878666,1756384269050,-1215.53061498,0.00033308,7]
[381878667,1756384269060,-161.51286045,0.00033317,12]
[381878668,1756384269069,-977.44200671,0.00033317,7]
[381878669,1756384269079,-195.9591225,0.00033321,7]
[381878670,1756384269089,-175.81,0.00033324,30]
[381878671,1756384269099,-159.8,0.00033324,30]
[381878672,1756384269108,-20000.0,0.00033324,2]
[381878673,1756384269118,-217.23524532,0.00033324,15]
[381878674,1756384269128,-200.78,0.00033328,60]
[381878675,1756384269138,-1412.93,0.00033328,60]
[381878676,1756384269149,-1814.98665901,0.00033329,7]
[381878677,1756384269159,-214.58883188,0.00033359,2]
[381878678,1756384269169,-168.0,0.00033359,2]
[381878679,1756384269179,-300.0,0.0003337,2]
[381878680,1756384269189,-400.0,0.0003337,2]
[381878681,1756384269199,-2517.68,0.00033382,120]
[381878682,1756384269209,-1366.6656231,0.000334,2]
[381878683,1756384269222,-1500.0,0.000334,12]
[381878684,1756384269232,-15230.14173073,0.00033423,2]
[381878685,1756384269242,-6290.0,0.00033424,60]
[381878686,1756384269256,-6290.0,0.00033424,60]
[381878687,1756384269266,-6290.0,0.00033424,60]
[381878688,1756384269276,-6290.0,0.00033424,60]
[381878689,1756384269287,-6293.0,0.00033424,60]
[381878690,1756384269296,-6290.0,0.00033424,60]
[381878691,1756384269306,-316.0,0.00033424,60]
[381878692,1756384269315,-316.0,0.00033424,60]
[381878693,1756384269325,-316.0,0.00033424,60]
[381878694,1756384269334,-1000.0,0.00033424,60]
[381878695,1756384269344,-1000.0,0.00033424,60]
[381878696,1756384269354,-1000.0,0.00033424,30]
[381878697,1756384269364,-500.0,0.00033424,120]
[381878698,1756384269374,-1000.0,0.00033424,30]
[381878699,1756384269384,-500.0,0.00033424,120]
[381878700,1756384269394,-500.0,0.00033424,120]
[381878701,1756384269403,-500.0,0.00033424,120]
[381878702,1756384269412,-451.00483665,0.00033424,120]
[381878703,1756384269422,-1000.0,0.00033424,30]
[381878704,1756384269431,-1607.43969275,0.00033424,60]
[381878705,1756384269442,-1000.0,0.00033424,30]
[381878706,1756384269451,-500.0,0.00033424,120]
[381878707,1756384269461,-500.0,0.00033424,120]
[381878708,1756384269470,-500.0,0.00033424,120]
[381878709,1756384269480,-500.0,0.00033424,120]
[381878710,1756384269489,-500.0,0.00033424,120]
[381878711,1756384269499,-500.0,0.00033424,120]
[381878712,1756384269516,-500.0,0.00033424,120]
[381878713,1756384269529,-368.2841367,0.00033424,120]
[381878714,1756384269546,-1000.0,0.00033424,60]
[381878715,1756384269556,-1000.0,0.00033424,30]
[381878716,1756384269570,-1000.0,0.00033424,30]
[381878717,1756384269581,-1000.0,0.00033424,60]
[381878718,1756384269591,-1000.0,0.00033424,60]
[381878719,1756384269601,-1000.0,0.00033424,30]
[381878720,1756384269610,-1000.0,0.00033424,60]
[381878721,1756384269620,-1000.0,0.00033424,60]
[381878722,1756384269630,-500.0,0.00033424,120]
[381878723,1756384269639,-500.0,0.00033424,120]
[381878724,1756384269649,-500.0,0.00033424,120]
[381878725,1756384269658,-500.0,0.00033424,120]
[381878726,1756384269668,-500.0,0.00033424,120]
[381878727,1756384269677,-500.0,0.00033424,120]
[381878728,1756384269687,-500.0,0.00033424,120]
[381878729,1756384269696,-429.02148637,0.00033424,120]
[381878730,1756384269705,-1000.0,0.00033424,30]
[381878731,1756384269715,-379.85546141,0.00033424,30]
[381878732,1756384269725,-1000.0,0.00033424,60]
[381878733,1756384269735,-1000.0,0.00033424,60]
[381878734,1756384269744,-1000.0,0.00033424,60]
[381878735,1756384269756,-1000.0,0.00033424,60]
[381878736,1756384269767,-1000.0,0.00033424,30]
[381878737,1756384269777,-1000.0,0.00033424,30]
[381878738,1756384269787,-1000.0,0.00033424,30]
[381878739,1756384269798,-1000.0,0.00033424,60]
[381878740,1756384269810,-1000.0,0.00033424,30]
[381878741,1756384269821,-1084.53,0.00033424,30]
[381878742,1756384269832,-930.78823638,0.00033424,120]
[381878743,1756384269842,-56228.055764,0.00033424,10]
[381878744,1756384269852,-324.84481701,0.00033424,120]
[381878745,1756384269861,-394.92970341,0.00033424,2]
[381878746,1756384269871,-570.62226019,0.00033424,5]
[381878747,1756384269881,-203893.22103473,0.00033424,2]
[381878748,1756384269891,-999.999999,0.00033424,120]
[381878749,1756384269901,-525.63797578,0.00033424,30]
[381878750,1756384269910,-392.84887007,0.00033424,30]
[381878751,1756384269920,-123234.23066595,0.00033424,2]
[381878752,1756384269930,-21835.74131903,0.00033424,120]
[381878753,1756384269939,-283290.99170374,0.00033424,120]
[381878754,1756384269948,-344.2010559,0.00033424,91]
[381878755,1756384269958,-664.96318321,0.00033424,30]
[381878756,1756384269967,-32939.6149387,0.00033424,30]
[381878757,1756384269976,-901.33417717,0.00033424,30]
[381878758,1756384269986,-288.10685245,0.00033424,30]
[381878759,1756384269995,-1000.0,0.00033424,30]
[381878760,1756384270006,-1210.0,0.00033424,2]
[381878761,1756384270015,-435.55573705,0.00033424,30]
[381878762,1756384270025,-445.58938583,0.00033424,120]
[381878763,1756384270034,-710.54190341,0.00033424,2]
[381878764,1756384270044,-365.87932652,0.00033424,2]
[381878765,1756384270053,-760.43649951,0.00033424,30]
[381878766,1756384270063,-2012.751073,0.00033424,5]
[381878767,1756384270072,-720.0018368,0.00033424,10]
[381878768,1756384270082,-843.90540513,0.00033424,30]
[381878769,1756384270092,-391.70828018,0.00033424,30]
[381878770,1756384270101,-351.87434112,0.00033424,2]
[381878771,1756384270111,-628.97988971,0.00033424,6]
[381878773,1756384270121,-626.32331558,0.00033424,120]
[381878775,1756384270130,-1047.00831476,0.00033424,15]
[381878776,1756384270140,-1013.75577147,0.00033424,30]
[381878777,1756384270149,-40251.67311372,0.00033424,10]
[381878778,1756384270159,-6677.4186564,0.00033424,2]
[381878779,1756384270168,-381.83676236,0.00033424,120]
[381878780,1756384270177,-1535.87248143,0.00033424,2]
[381878781,1756384270187,-390.05526103,0.00033424,30]
[381878782,1756384270197,-1040.15184211,0.00033424,2]
[381878783,1756384270210,-31855.06168217,0.00033424,120]
[381878784,1756384270219,-5236.12076343,0.00033424,2]
[381878785,1756384270229,-605.80795332,0.00033424,120]
[381878786,1756384270238,-474.48080968,0.00033424,120]
[381878787,1756384270249,-540.22681315,0.00033424,7]
[381878788,1756384270260,-350.09172381,0.00033424,2]
[381878789,1756384270270,-660.42322956,0.00033424,120]
[381878790,1756384270279,-18750.70264901,0.00033424,120]
[381878791,1756384270289,-2478.9059978,0.00033424,2]
[381878792,1756384270299,-882.67756714,0.00033424,30]
[381878793,1756384270307,-300.0,0.00033424,15]
[381878794,1756384270316,-2731.17802511,0.00033424,2]
[381878795,1756384270326,-218451.52808617,0.00033424,2]
[381878796,1756384270335,-152.86852684,0.00033424,2]
[381878797,1756384270344,-1694.69652281,0.00033424,2]
[381878798,1756384270353,-1536.07948283,0.00033424,120]
[381878799,1756384270362,-891.3042482,0.00033424,30]
[381878800,1756384270371,-990.37420489,0.00033424,5]
[381878801,1756384270382,-348.80616229,0.00033424,120]
[381878802,1756384270391,-1078.84730406,0.00033424,30]
[381878803,1756384270400,-597.60290945,0.00033424,90]
[381878804,1756384270409,-2343.99052957,0.00033424,14]
[381878805,1756384270418,-251.70728794,0.00033424,2]
[381878806,1756384270427,-166.11884026,0.00033424,2]
[381878808,1756384270437,-659.94289476,0.00033424,2]
[381878809,1756384270446,-306.4536004,0.00033424,30]
[381878810,1756384270456,-1000.87790267,0.00033424,2]
[381878811,1756384270465,-1274.33428113,0.00033424,2]
[381878812,1756384270475,-960.05987458,0.00033424,30]
[381878813,1756384270484,-1079.70789312,0.00033424,120]
[381878814,1756384270494,-543563.60388371,0.00033424,120]
[381878815,1756384270505,-166.26085948,0.00033424,60]
[381878816,1756384270515,-245.85536252,0.00033424,2]
[381878817,1756384270524,-564.22081054,0.00033424,120]
[381878818,1756384270533,-7795.04195214,0.00033424,2]
[381878819,1756384270543,-147697.59043687,0.00033424,120]
[381878820,1756384270552,-214.83680096,0.00033424,30]
[381878821,1756384270561,-268.62370119,0.00033424,30]
[381878822,1756384270571,-975.01697145,0.00033424,60]
[381878823,1756384270581,-991.82745136,0.00033424,30]
[381878824,1756384270590,-350626.12739572,0.00033424,120]
[381878825,1756384270600,-185.11607903,0.00033424,120]
[381878826,1756384270609,-163.41432459,0.00033424,2]
[381878827,1756384270619,-1052.30557451,0.00033424,2]
[381878828,1756384270628,-600.0,0.00033424,5]
[381878829,1756384270638,-593.27617862,0.00033424,120]
[381878830,1756384270647,-1044.17394827,0.00033424,30]
[381878831,1756384270657,-550.88638323,0.00033424,2]
[381878832,1756384270666,-362.4344145,0.00033424,30]
[381878833,1756384270678,-151.9397373,0.00033424,60]
[381878834,1756384270687,-9324.66816616,0.00033424,2]
[381878835,1756384270697,-1324.73052458,0.00033424,2]
[381878836,1756384270706,-1000.0,0.00033424,10]
[381878837,1756384270716,-3453.30922392,0.00033424,2]